{"text_format":"3","workbook":"xlsx","n_sheets":2,"sheets":["Rozvrh zamestnancov","Nastavenie"],"not_rendered":{"defined_names":21},"read":"whole","date_system":"1900"}

{"sheet":"Rozvrh zamestnancov","index":0,"n_rows":296,"n_cols":21,"rows_kept":296,"merged":[[6,1,6,9],[66,1,66,9],[126,1,126,9],[186,1,186,9],[246,1,246,9]]}
["Pracovný harmonogram zamestnancov"]
[]
[null,"CELKOM:",null,{"$f":"SUM(4:4)","v":{"v":56,"d":"56.00"}}]
[null,"HODINY:",null,{"$f":"CelkovýPočetHodínZaDeňZamestnanca","v":8},8,8,8,8,8,8,{"v":0,"d":"0.00"},{"v":0,"d":"0.00"},{"v":0,"d":"0.00"},{"v":0,"d":"0.00"},{"v":0,"d":"0.00"},{"v":0,"d":"0.00"},{"v":0,"d":"0.00"},{"v":0,"d":"0.00"},{"v":0,"d":"0.00"},{"v":0,"d":"0.00"},{"v":0,"d":"0.00"}]
[null,"ZAMESTNANEC:",null,"R. Kováč","L. Šimko","M. Nagyová","L. Šimko","T. Melík","B. Grešák","J. Rybný"]
[]
[null,"2012-07-16T09:00:00"]
[null,{"$f":"B7","v":41106.375},{"$nulls":5},"Dovolenka"]
[null,{"$f":"ZobrazenieObdobí","v":":15"},null,"Recepcia",{"$nulls":3},"Dovolenka"]
[null,":30",null,"Recepcia",{"$nulls":3},"Dovolenka"]
[null,":45",null,"Recepcia","Nadriadený",null,"Zák. služby","Dovolenka"]
[null,"10:00 AM",null,"Recepcia","Nadriadený",null,"Zák. služby","Dovolenka"]
[null,":15",null,"Recepcia","Nadriadený",null,"Zák. služby","Dovolenka"]
[null,":30",null,"Recepcia","Nadriadený",null,"Zák. služby","Dovolenka","Účtovníctvo"]
[null,":45",null,"Recepcia","Nadriadený",null,"Zák. služby","Dovolenka","Účtovníctvo","Vrátnica"]
[null,"11:00 AM",null,"Recepcia","Nadriadený",null,"Zák. služby","Dovolenka","Účtovníctvo","Vrátnica"]
[null,":15",null,"Recepcia","Nadriadený","Sprievodca","Zák. služby","Dovolenka","Účtovníctvo","Vrátnica"]
[null,":30",null,"Recepcia","Prestávka","Sprievodca","Zák. služby","Dovolenka","Účtovníctvo","Vrátnica"]
[null,":45",null,"Obed","Nadriadený","Sprievodca","Zák. služby","Dovolenka","Účtovníctvo","Vrátnica"]
[null,"12:00 PM",null,"Obed","Nadriadený","Sprievodca","Zák. služby","Dovolenka","Účtovníctvo","Vrátnica"]
[null,":15",null,"Recepcia","Nadriadený","Sprievodca","Zák. služby","Dovolenka","Prestávka","Vrátnica"]
[null,":30",null,"Recepcia","Nadriadený","Prestávka","Zák. služby","Dovolenka","Telefóny","Prestávka"]
[null,":45",null,"Recepcia","Nadriadený","Sprievodca","Zák. služby","Dovolenka","Telefóny","Vrátnica"]
[null,"1:00 PM",null,"Recepcia","Nadriadený","Sprievodca","Zák. služby","Dovolenka","Telefóny","Vrátnica"]
[null,":15",null,"Recepcia","Nadriadený","Sprievodca","Obed","Dovolenka","Telefóny","Vrátnica"]
[null,":30",null,null,"Nadriadený","Sprievodca","Obed","Dovolenka","Telefóny","Vrátnica"]
[null,":45",null,null,"Nadriadený","Sprievodca","Obed","Dovolenka","Obed","Vrátnica"]
[null,"2:00 PM",null,"Pokladňa","Obed","Sprievodca","Obed","Dovolenka","Obed","Vrátnica"]
[null,":15",null,"Pokladňa","Obed","Sprievodca","Zák. služby","Dovolenka","Telefóny","Vrátnica"]
[null,":30",null,"Pokladňa","Obed","Obed","Zák. služby","Dovolenka","Telefóny","Obed"]
[null,":45",null,"Pokladňa","Obed","Obed","Zák. služby","Dovolenka","Telefóny","Obed"]
[null,"3:00 PM",null,"Pokladňa","Zabezpečenie","Obed","Zák. služby","Dovolenka","Telefóny","Obed"]
[null,":15",null,"Pokladňa","Zabezpečenie","Obed","Zák. služby","Dovolenka","Telefóny","Obed"]
[null,":30",null,"Pokladňa","Zabezpečenie","Sprievodca","Zák. služby","Dovolenka","Telefóny","Zavrieť"]
[null,":45",null,"Pokladňa","Zabezpečenie","Sprievodca","Zák. služby","Dovolenka","Telefóny","Zavrieť"]
[null,"4:00 PM",null,"Pokladňa","Zabezpečenie","Sprievodca","Zák. služby","Dovolenka","Prestávka","Zavrieť"]
[null,":15",null,"Prestávka","Zabezpečenie","Sprievodca","Prestávka","Dovolenka","Telefóny","Zavrieť"]
[null,":30",null,"Pokladňa","Zabezpečenie","Sprievodca","Zák. služby","Dovolenka","Telefóny","Zavrieť"]
[null,":45",null,"Pokladňa","Zabezpečenie","Sprievodca","Zák. služby","Dovolenka","Telefóny","Zavrieť"]
[null,"5:00 PM",null,"Pokladňa","Zabezpečenie","Sprievodca","Zák. služby",null,"Telefóny","Zavrieť"]
[null,":15",null,"Pokladňa","Zabezpečenie","Sprievodca","Zák. služby",null,"Telefóny","Zavrieť"]
[null,":30",null,"Pokladňa","Zabezpečenie","Sprievodca","Zák. služby",null,"Telefóny","Zavrieť"]
[null,":45",null,"Pokladňa","Zabezpečenie","Sprievodca","Zák. služby",null,"Telefóny","Zavrieť"]
[null,"6:00 PM",null,"Pokladňa","Zabezpečenie","Sprievodca","Zák. služby",null,"Telefóny","Zavrieť"]
[null,":15",null,"Pokladňa","Zabezpečenie","Sprievodca","Zák. služby",null,"Telefóny","Zavrieť"]
[null,":30",null,null,"Zabezpečenie","Sprievodca","Zák. služby",null,"Telefóny","Zavrieť"]
[null,":45",null,null,"Zabezpečenie","Prestávka","Zák. služby",null,"Telefóny","Prestávka"]
[null,"7:00 PM",{"$nulls":3},"Sprievodca",null,null,"Telefóny","Zavrieť"]
[null,":15",{"$nulls":3},"Sprievodca",null,null,"Telefóny","Zavrieť"]
[null,":30",{"$nulls":3},"Sprievodca",{"$nulls":3},"Zavrieť"]
[null,":45",{"$nulls":3},"Sprievodca",{"$nulls":3},"Zavrieť"]
[null,"8:00 PM",{"$nulls":3},"Sprievodca",{"$nulls":3},"Zavrieť"]
[null,":15",{"$nulls":3},"Sprievodca"]
[null,":30",{"$nulls":3},"Sprievodca"]
[null,":45"]
[null,"9:00 PM"]
[]
[]
[]
[]
["Rozvrh zamestnanca"]
[]
[null,"CELKOM:",null,{"$f":"SUM(64:64)","v":{"v":56,"d":"56.00"}}]
[null,"HODINY:",null,{"$f":"CelkovýPočetHodínZaDeňZamestnanca","v":8},8,8,8,8,8,8,{"v":0,"d":"0.00"},{"v":0,"d":"0.00"},{"v":0,"d":"0.00"},{"v":0,"d":"0.00"},{"v":0,"d":"0.00"},{"v":0,"d":"0.00"},{"v":0,"d":"0.00"},{"v":0,"d":"0.00"},{"v":0,"d":"0.00"},{"v":0,"d":"0.00"},{"v":0,"d":"0.00"}]
[null,"ZAMESTNANEC:",null,"R. Kováč","L. Šimko","M. Nagyová","M. Jonáš","T. Melík","B. Grešák","J. Rybný"]
[]
[null,{"$f":"B7+1","v":"2012-07-17T09:00:00"}]
[null,{"$f":"B67","v":41107.375},{"$nulls":5},"Dovolenka"]
[null,{"$f":"ZobrazenieObdobí","v":":15"},null,"Recepcia",{"$nulls":3},"Dovolenka"]
[null,":30",null,"Recepcia",{"$nulls":3},"Dovolenka"]
[null,":45",null,"Recepcia","Nadriadený",null,"Zák. služby","Dovolenka"]
[null,"1:00 AM",null,"Recepcia","Nadriadený",null,"Zák. služby","Dovolenka"]
[null,":15",null,"Recepcia","Nadriadený",null,"Zák. služby","Dovolenka"]
[null,":30",null,"Recepcia","Nadriadený",null,"Zák. služby","Dovolenka","Účtovníctvo"]
[null,":45",null,"Recepcia","Nadriadený",null,"Zák. služby","Dovolenka","Účtovníctvo","Vrátnica"]
[null,"2:00 AM",null,"Recepcia","Nadriadený",null,"Zák. služby","Dovolenka","Účtovníctvo","Vrátnica"]
[null,":15",null,"Recepcia","Nadriadený","Sprievodca","Zák. služby","Dovolenka","Účtovníctvo","Vrátnica"]
[null,":30",null,"Recepcia","Prestávka","Sprievodca","Zák. služby","Dovolenka","Účtovníctvo","Vrátnica"]
[null,":45",null,"Obed","Nadriadený","Sprievodca","Zák. služby","Dovolenka","Účtovníctvo","Vrátnica"]
[null,"3:00 AM",null,"Obed","Nadriadený","Sprievodca","Zák. služby","Dovolenka","Účtovníctvo","Vrátnica"]
[null,":15",null,"Recepcia","Nadriadený","Sprievodca","Zák. služby","Dovolenka","Prestávka","Vrátnica"]
[null,":30",null,"Recepcia","Nadriadený","Prestávka","Zák. služby","Dovolenka","Telefóny","Prestávka"]
[null,":45",null,"Recepcia","Nadriadený","Sprievodca","Zák. služby","Dovolenka","Telefóny","Vrátnica"]
[null,"4:00 AM",null,"Recepcia","Nadriadený","Sprievodca","Zák. služby","Dovolenka","Telefóny","Vrátnica"]
[null,":15",null,"Recepcia","Nadriadený","Sprievodca","Obed","Dovolenka","Telefóny","Vrátnica"]
[null,":30",null,null,"Nadriadený","Sprievodca","Obed","Dovolenka","Telefóny","Vrátnica"]
[null,":45",null,null,"Nadriadený","Sprievodca","Obed","Dovolenka","Obed","Vrátnica"]
[null,"5:00 AM",null,"Pokladňa","Obed","Sprievodca","Obed","Dovolenka","Obed","Vrátnica"]
[null,":15",null,"Pokladňa","Obed","Sprievodca","Zák. služby","Dovolenka","Telefóny","Vrátnica"]
[null,":30",null,"Pokladňa","Obed","Obed","Zák. služby","Dovolenka","Telefóny","Obed"]
[null,":45",null,"Pokladňa","Obed","Obed","Zák. služby","Dovolenka","Telefóny","Obed"]
[null,"6:00 AM",null,"Pokladňa","Zabezpečenie","Obed","Zák. služby","Dovolenka","Telefóny","Obed"]
[null,":15",null,"Pokladňa","Zabezpečenie","Obed","Zák. služby","Dovolenka","Telefóny","Obed"]
[null,":30",null,"Pokladňa","Zabezpečenie","Sprievodca","Zák. služby","Dovolenka","Telefóny","Zavrieť"]
[null,":45",null,"Pokladňa","Zabezpečenie","Sprievodca","Zák. služby","Dovolenka","Telefóny","Zavrieť"]
[null,"7:00 AM",null,"Pokladňa","Zabezpečenie","Sprievodca","Zák. služby","Dovolenka","Prestávka","Zavrieť"]
[null,":15",null,"Prestávka","Zabezpečenie","Sprievodca","Prestávka","Dovolenka","Telefóny","Zavrieť"]
[null,":30",null,"Pokladňa","Zabezpečenie","Sprievodca","Zák. služby","Dovolenka","Telefóny","Zavrieť"]
[null,":45",null,"Pokladňa","Zabezpečenie","Sprievodca","Zák. služby","Dovolenka","Telefóny","Zavrieť"]
[null,"8:00 AM",null,"Pokladňa","Zabezpečenie","Sprievodca","Zák. služby",null,"Telefóny","Zavrieť"]
[null,":15",null,"Pokladňa","Zabezpečenie","Sprievodca","Zák. služby",null,"Telefóny","Zavrieť"]
[null,":30",null,"Pokladňa","Zabezpečenie","Sprievodca","Zák. služby",null,"Telefóny","Zavrieť"]
[null,":45",null,"Pokladňa","Zabezpečenie","Sprievodca","Zák. služby",null,"Telefóny","Zavrieť"]
[null,"9:00 AM",null,"Pokladňa","Zabezpečenie","Sprievodca","Zák. služby",null,"Telefóny","Zavrieť"]
[null,":15",null,"Pokladňa","Zabezpečenie","Sprievodca","Zák. služby",null,"Telefóny","Zavrieť"]
[null,":30",null,null,"Zabezpečenie","Sprievodca","Zák. služby",null,"Telefóny","Zavrieť"]
[null,":45",null,null,"Zabezpečenie","Prestávka","Zák. služby",null,"Telefóny","Prestávka"]
[null,"10:00 AM",{"$nulls":3},"Sprievodca",null,null,"Telefóny","Zavrieť"]
[null,":15",{"$nulls":3},"Sprievodca",null,null,"Telefóny","Zavrieť"]
[null,":30",{"$nulls":3},"Sprievodca",{"$nulls":3},"Zavrieť"]
[null,":45",{"$nulls":3},"Sprievodca",{"$nulls":3},"Zavrieť"]
[null,"11:00 AM",{"$nulls":3},"Sprievodca",{"$nulls":3},"Zavrieť"]
[null,":15",{"$nulls":3},"Sprievodca"]
[null,":30",{"$nulls":3},"Sprievodca"]
[null,":45"]
[null,"12:00 PM"]
[]
[]
[]
[]
["Rozvrh zamestnanca"]
[]
[null,"CELKOM:",null,{"$f":"SUM(124:124)","v":{"v":56,"d":"56.00"}}]
[null,"HODINY:",null,{"$f":"CelkovýPočetHodínZaDeňZamestnanca","v":8},8,8,8,8,8,8,{"v":0,"d":"0.00"},{"v":0,"d":"0.00"},{"v":0,"d":"0.00"},{"v":0,"d":"0.00"},{"v":0,"d":"0.00"},{"v":0,"d":"0.00"},{"v":0,"d":"0.00"},{"v":0,"d":"0.00"},{"v":0,"d":"0.00"},{"v":0,"d":"0.00"},{"v":0,"d":"0.00"}]
[null,"ZAMESTNANEC:",null,"R. Kováč","L. Šimko","M. Nagyová","M. Jonáš","T. Melík","B. Grešák","J. Rybný"]
[]
[null,{"$f":"B67+1","v":"2012-07-18T09:00:00"}]
[null,{"$f":"B127","v":41108.375},{"$nulls":5},"Dovolenka"]
[null,{"$f":"ZobrazenieObdobí","v":":15"},null,"Recepcia",{"$nulls":3},"Dovolenka"]
[null,":30",null,"Recepcia",{"$nulls":3},"Dovolenka"]
[null,":45",null,"Recepcia","Nadriadený",null,"Zák. služby","Dovolenka"]
[null,"4:00 PM",null,"Recepcia","Nadriadený",null,"Zák. služby","Dovolenka"]
[null,":15",null,"Recepcia","Nadriadený",null,"Zák. služby","Dovolenka"]
[null,":30",null,"Recepcia","Nadriadený",null,"Zák. služby","Dovolenka","Účtovníctvo"]
[null,":45",null,"Recepcia","Nadriadený",null,"Zák. služby","Dovolenka","Účtovníctvo","Vrátnica"]
[null,"5:00 PM",null,"Recepcia","Nadriadený",null,"Zák. služby","Dovolenka","Účtovníctvo","Vrátnica"]
[null,":15",null,"Recepcia","Nadriadený","Sprievodca","Zák. služby","Dovolenka","Účtovníctvo","Vrátnica"]
[null,":30",null,"Recepcia","Prestávka","Sprievodca","Zák. služby","Dovolenka","Účtovníctvo","Vrátnica"]
[null,":45",null,"Obed","Nadriadený","Sprievodca","Zák. služby","Dovolenka","Účtovníctvo","Vrátnica"]
[null,"6:00 PM",null,"Obed","Nadriadený","Sprievodca","Zák. služby","Dovolenka","Účtovníctvo","Vrátnica"]
[null,":15",null,"Recepcia","Nadriadený","Sprievodca","Zák. služby","Dovolenka","Prestávka","Vrátnica"]
[null,":30",null,"Recepcia","Nadriadený","Prestávka","Zák. služby","Dovolenka","Telefóny","Prestávka"]
[null,":45",null,"Recepcia","Nadriadený","Sprievodca","Zák. služby","Dovolenka","Telefóny","Vrátnica"]
[null,"7:00 PM",null,"Recepcia","Nadriadený","Sprievodca","Zák. služby","Dovolenka","Telefóny","Vrátnica"]
[null,":15",null,"Recepcia","Nadriadený","Sprievodca","Obed","Dovolenka","Telefóny","Vrátnica"]
[null,":30",null,null,"Nadriadený","Sprievodca","Obed","Dovolenka","Telefóny","Vrátnica"]
[null,":45",null,null,"Nadriadený","Sprievodca","Obed","Dovolenka","Obed","Vrátnica"]
[null,"8:00 PM",null,"Pokladňa","Obed","Sprievodca","Obed","Dovolenka","Obed","Vrátnica"]
[null,":15",null,"Pokladňa","Obed","Sprievodca","Zák. služby","Dovolenka","Telefóny","Vrátnica"]
[null,":30",null,"Pokladňa","Obed","Obed","Zák. služby","Dovolenka","Telefóny","Obed"]
[null,":45",null,"Pokladňa","Obed","Obed","Zák. služby","Dovolenka","Telefóny","Obed"]
[null,"9:00 PM",null,"Pokladňa","Zabezpečenie","Obed","Zák. služby","Dovolenka","Telefóny","Obed"]
[null,":15",null,"Pokladňa","Zabezpečenie","Obed","Zák. služby","Dovolenka","Telefóny","Obed"]
[null,":30",null,"Pokladňa","Zabezpečenie","Sprievodca","Zák. služby","Dovolenka","Telefóny","Zavrieť"]
[null,":45",null,"Pokladňa","Zabezpečenie","Sprievodca","Zák. služby","Dovolenka","Telefóny","Zavrieť"]
[null,"10:00 PM",null,"Pokladňa","Zabezpečenie","Sprievodca","Zák. služby","Dovolenka","Prestávka","Zavrieť"]
[null,":15",null,"Prestávka","Zabezpečenie","Sprievodca","Prestávka","Dovolenka","Telefóny","Zavrieť"]
[null,":30",null,"Pokladňa","Zabezpečenie","Sprievodca","Zák. služby","Dovolenka","Telefóny","Zavrieť"]
[null,":45",null,"Pokladňa","Zabezpečenie","Sprievodca","Zák. služby","Dovolenka","Telefóny","Zavrieť"]
[null,"11:00 PM",null,"Pokladňa","Zabezpečenie","Sprievodca","Zák. služby",null,"Telefóny","Zavrieť"]
[null,":15",null,"Pokladňa","Zabezpečenie","Sprievodca","Zák. služby",null,"Telefóny","Zavrieť"]
[null,":30",null,"Pokladňa","Zabezpečenie","Sprievodca","Zák. služby",null,"Telefóny","Zavrieť"]
[null,":45",null,"Pokladňa","Zabezpečenie","Sprievodca","Zák. služby",null,"Telefóny","Zavrieť"]
[null,"12:00 AM",null,"Pokladňa","Zabezpečenie","Sprievodca","Zák. služby",null,"Telefóny","Zavrieť"]
[null,":15",null,"Pokladňa","Zabezpečenie","Sprievodca","Zák. služby",null,"Telefóny","Zavrieť"]
[null,":30",null,null,"Zabezpečenie","Sprievodca","Zák. služby",null,"Telefóny","Zavrieť"]
[null,":45",null,null,"Zabezpečenie","Prestávka","Zák. služby",null,"Telefóny","Prestávka"]
[null,"1:00 AM",{"$nulls":3},"Sprievodca",null,null,"Telefóny","Zavrieť"]
[null,":15",{"$nulls":3},"Sprievodca",null,null,"Telefóny","Zavrieť"]
[null,":30",{"$nulls":3},"Sprievodca",{"$nulls":3},"Zavrieť"]
[null,":45",{"$nulls":3},"Sprievodca",{"$nulls":3},"Zavrieť"]
[null,"2:00 AM",{"$nulls":3},"Sprievodca",{"$nulls":3},"Zavrieť"]
[null,":15",{"$nulls":3},"Sprievodca"]
[null,":30",{"$nulls":3},"Sprievodca"]
[null,":45"]
[null,"3:00 AM"]
[]
[]
[]
[]
["Rozvrh zamestnanca"]
[]
[null,"CELKOM:",null,{"$f":"SUM(184:184)","v":{"v":56,"d":"56.00"}}]
[null,"HODINY:",null,{"$f":"CelkovýPočetHodínZaDeňZamestnanca","v":8},8,8,8,8,8,8,{"v":0,"d":"0.00"},{"v":0,"d":"0.00"},{"v":0,"d":"0.00"},{"v":0,"d":"0.00"},{"v":0,"d":"0.00"},{"v":0,"d":"0.00"},{"v":0,"d":"0.00"},{"v":0,"d":"0.00"},{"v":0,"d":"0.00"},{"v":0,"d":"0.00"},{"v":0,"d":"0.00"}]
[null,"ZAMESTNANEC:",null,"R. Kováč","L. Šimko","M. Nagyová","M. Jonáš","T. Melík","B. Grešák","J. Rybný"]
[]
[null,{"$f":"B127+1","v":"2012-07-19T09:00:00"}]
[null,{"$f":"B187","v":41109.375},{"$nulls":5},"Dovolenka"]
[null,{"$f":"ZobrazenieObdobí","v":":15"},null,"Recepcia",{"$nulls":3},"Dovolenka"]
[null,":30",null,"Recepcia",{"$nulls":3},"Dovolenka"]
[null,":45",null,"Recepcia","Nadriadený",null,"Zák. služby","Dovolenka"]
[null,"7:00 AM",null,"Recepcia","Nadriadený",null,"Zák. služby","Dovolenka"]
[null,":15",null,"Recepcia","Nadriadený",null,"Zák. služby","Dovolenka"]
[null,":30",null,"Recepcia","Nadriadený",null,"Zák. služby","Dovolenka","Účtovníctvo"]
[null,":45",null,"Recepcia","Nadriadený",null,"Zák. služby","Dovolenka","Účtovníctvo","Vrátnica"]
[null,"8:00 AM",null,"Recepcia","Nadriadený",null,"Zák. služby","Dovolenka","Účtovníctvo","Vrátnica"]
[null,":15",null,"Recepcia","Nadriadený","Sprievodca","Zák. služby","Dovolenka","Účtovníctvo","Vrátnica"]
[null,":30",null,"Recepcia","Prestávka","Sprievodca","Zák. služby","Dovolenka","Účtovníctvo","Vrátnica"]
[null,":45",null,"Obed","Nadriadený","Sprievodca","Zák. služby","Dovolenka","Účtovníctvo","Vrátnica"]
[null,"9:00 AM",null,"Obed","Nadriadený","Sprievodca","Zák. služby","Dovolenka","Účtovníctvo","Vrátnica"]
[null,":15",null,"Recepcia","Nadriadený","Sprievodca","Zák. služby","Dovolenka","Prestávka","Vrátnica"]
[null,":30",null,"Recepcia","Nadriadený","Prestávka","Zák. služby","Dovolenka","Telefóny","Prestávka"]
[null,":45",null,"Recepcia","Nadriadený","Sprievodca","Zák. služby","Dovolenka","Telefóny","Vrátnica"]
[null,"10:00 AM",null,"Recepcia","Nadriadený","Sprievodca","Zák. služby","Dovolenka","Telefóny","Vrátnica"]
[null,":15",null,"Recepcia","Nadriadený","Sprievodca","Obed","Dovolenka","Telefóny","Vrátnica"]
[null,":30",null,null,"Nadriadený","Sprievodca","Obed","Dovolenka","Telefóny","Vrátnica"]
[null,":45",null,null,"Nadriadený","Sprievodca","Obed","Dovolenka","Obed","Vrátnica"]
[null,"11:00 AM",null,"Pokladňa","Obed","Sprievodca","Obed","Dovolenka","Obed","Vrátnica"]
[null,":15",null,"Pokladňa","Obed","Sprievodca","Zák. služby","Dovolenka","Telefóny","Vrátnica"]
[null,":30",null,"Pokladňa","Obed","Obed","Zák. služby","Dovolenka","Telefóny","Obed"]
[null,":45",null,"Pokladňa","Obed","Obed","Zák. služby","Dovolenka","Telefóny","Obed"]
[null,"12:00 PM",null,"Pokladňa","Zabezpečenie","Obed","Zák. služby","Dovolenka","Telefóny","Obed"]
[null,":15",null,"Pokladňa","Zabezpečenie","Obed","Zák. služby","Dovolenka","Telefóny","Obed"]
[null,":30",null,"Pokladňa","Zabezpečenie","Sprievodca","Zák. služby","Dovolenka","Telefóny","Zavrieť"]
[null,":45",null,"Pokladňa","Zabezpečenie","Sprievodca","Zák. služby","Dovolenka","Telefóny","Zavrieť"]
[null,"1:00 PM",null,"Pokladňa","Zabezpečenie","Sprievodca","Zák. služby","Dovolenka","Prestávka","Zavrieť"]
[null,":15",null,"Prestávka","Zabezpečenie","Sprievodca","Prestávka","Dovolenka","Telefóny","Zavrieť"]
[null,":30",null,"Pokladňa","Zabezpečenie","Sprievodca","Zák. služby","Dovolenka","Telefóny","Zavrieť"]
[null,":45",null,"Pokladňa","Zabezpečenie","Sprievodca","Zák. služby","Dovolenka","Telefóny","Zavrieť"]
[null,"2:00 PM",null,"Pokladňa","Zabezpečenie","Sprievodca","Zák. služby",null,"Telefóny","Zavrieť"]
[null,":15",null,"Pokladňa","Zabezpečenie","Sprievodca","Zák. služby",null,"Telefóny","Zavrieť"]
[null,":30",null,"Pokladňa","Zabezpečenie","Sprievodca","Zák. služby",null,"Telefóny","Zavrieť"]
[null,":45",null,"Pokladňa","Zabezpečenie","Sprievodca","Zák. služby",null,"Telefóny","Zavrieť"]
[null,"3:00 PM",null,"Pokladňa","Zabezpečenie","Sprievodca","Zák. služby",null,"Telefóny","Zavrieť"]
[null,":15",null,"Pokladňa","Zabezpečenie","Sprievodca","Zák. služby",null,"Telefóny","Zavrieť"]
[null,":30",null,null,"Zabezpečenie","Sprievodca","Zák. služby",null,"Telefóny","Zavrieť"]
[null,":45",null,null,"Zabezpečenie","Prestávka","Zák. služby",null,"Telefóny","Prestávka"]
[null,"4:00 PM",{"$nulls":3},"Sprievodca",null,null,"Telefóny","Zavrieť"]
[null,":15",{"$nulls":3},"Sprievodca",null,null,"Telefóny","Zavrieť"]
[null,":30",{"$nulls":3},"Sprievodca",{"$nulls":3},"Zavrieť"]
[null,":45",{"$nulls":3},"Sprievodca",{"$nulls":3},"Zavrieť"]
[null,"5:00 PM",{"$nulls":3},"Sprievodca",{"$nulls":3},"Zavrieť"]
[null,":15",{"$nulls":3},"Sprievodca"]
[null,":30",{"$nulls":3},"Sprievodca"]
[null,":45"]
[null,"6:00 PM"]
[]
[]
[]
[]
["Rozvrh zamestnanca"]
[]
[null,"CELKOM:",null,{"$f":"SUM(244:244)","v":{"v":56,"d":"56.00"}}]
[null,"HODINY:",null,{"$f":"CelkovýPočetHodínZaDeňZamestnanca","v":8},8,8,8,8,8,8,{"v":0,"d":"0.00"},{"v":0,"d":"0.00"},{"v":0,"d":"0.00"},{"v":0,"d":"0.00"},{"v":0,"d":"0.00"},{"v":0,"d":"0.00"},{"v":0,"d":"0.00"},{"v":0,"d":"0.00"},{"v":0,"d":"0.00"},{"v":0,"d":"0.00"},{"v":0,"d":"0.00"}]
[null,"ZAMESTNANEC:",null,"R. Kováč","L. Šimko","M. Nagyová","M. Jonáš","T. Melík","B. Grešák","J. Rybný"]
[]
[null,{"$f":"B187+1","v":"2012-07-20T09:00:00"}]
[null,{"$f":"B247","v":41110.375},{"$nulls":5},"Dovolenka"]
[null,{"$f":"ZobrazenieObdobí","v":":15"},null,"Recepcia",{"$nulls":3},"Dovolenka"]
[null,":30",null,"Recepcia",{"$nulls":3},"Dovolenka"]
[null,":45",null,"Recepcia","Nadriadený",null,"Zák. služby","Dovolenka"]
[null,"10:00 PM",null,"Recepcia","Nadriadený",null,"Zák. služby","Dovolenka"]
[null,":15",null,"Recepcia","Nadriadený",null,"Zák. služby","Dovolenka"]
[null,":30",null,"Recepcia","Nadriadený",null,"Zák. služby","Dovolenka","Účtovníctvo"]
[null,":45",null,"Recepcia","Nadriadený",null,"Zák. služby","Dovolenka","Účtovníctvo","Vrátnica"]
[null,"11:00 PM",null,"Recepcia","Nadriadený",null,"Zák. služby","Dovolenka","Účtovníctvo","Vrátnica"]
[null,":15",null,"Recepcia","Nadriadený","Sprievodca","Zák. služby","Dovolenka","Účtovníctvo","Vrátnica"]
[null,":30",null,"Recepcia","Prestávka","Sprievodca","Zák. služby","Dovolenka","Účtovníctvo","Vrátnica"]
[null,":45",null,"Obed","Nadriadený","Sprievodca","Zák. služby","Dovolenka","Účtovníctvo","Vrátnica"]
[null,"12:00 AM",null,"Obed","Nadriadený","Sprievodca","Zák. služby","Dovolenka","Účtovníctvo","Vrátnica"]
[null,":15",null,"Recepcia","Nadriadený","Sprievodca","Zák. služby","Dovolenka","Prestávka","Vrátnica"]
[null,":30",null,"Recepcia","Nadriadený","Prestávka","Zák. služby","Dovolenka","Telefóny","Prestávka"]
[null,":45",null,"Recepcia","Nadriadený","Sprievodca","Zák. služby","Dovolenka","Telefóny","Vrátnica"]
[null,"1:00 AM",null,"Recepcia","Nadriadený","Sprievodca","Zák. služby","Dovolenka","Telefóny","Vrátnica"]
[null,":15",null,"Recepcia","Nadriadený","Sprievodca","Obed","Dovolenka","Telefóny","Vrátnica"]
[null,":30",null,null,"Nadriadený","Sprievodca","Obed","Dovolenka","Telefóny","Vrátnica"]
[null,":45",null,null,"Nadriadený","Sprievodca","Obed","Dovolenka","Obed","Vrátnica"]
[null,"2:00 AM",null,"Pokladňa","Obed","Sprievodca","Obed","Dovolenka","Obed","Vrátnica"]
[null,":15",null,"Pokladňa","Obed","Sprievodca","Zák. služby","Dovolenka","Telefóny","Vrátnica"]
[null,":30",null,"Pokladňa","Obed","Obed","Zák. služby","Dovolenka","Telefóny","Obed"]
[null,":45",null,"Pokladňa","Obed","Obed","Zák. služby","Dovolenka","Telefóny","Obed"]
[null,"3:00 AM",null,"Pokladňa","Zabezpečenie","Obed","Zák. služby","Dovolenka","Telefóny","Obed"]
[null,":15",null,"Pokladňa","Zabezpečenie","Obed","Zák. služby","Dovolenka","Telefóny","Obed"]
[null,":30",null,"Pokladňa","Zabezpečenie","Sprievodca","Zák. služby","Dovolenka","Telefóny","Zavrieť"]
[null,":45",null,"Pokladňa","Zabezpečenie","Sprievodca","Zák. služby","Dovolenka","Telefóny","Zavrieť"]
[null,"4:00 AM",null,"Pokladňa","Zabezpečenie","Sprievodca","Zák. služby","Dovolenka","Prestávka","Zavrieť"]
[null,":15",null,"Prestávka","Zabezpečenie","Sprievodca","Prestávka","Dovolenka","Telefóny","Zavrieť"]
[null,":30",null,"Pokladňa","Zabezpečenie","Sprievodca","Zák. služby","Dovolenka","Telefóny","Zavrieť"]
[null,":45",null,"Pokladňa","Zabezpečenie","Sprievodca","Zák. služby","Dovolenka","Telefóny","Zavrieť"]
[null,"5:00 AM",null,"Pokladňa","Zabezpečenie","Sprievodca","Zák. služby",null,"Telefóny","Zavrieť"]
[null,":15",null,"Pokladňa","Zabezpečenie","Sprievodca","Zák. služby",null,"Telefóny","Zavrieť"]
[null,":30",null,"Pokladňa","Zabezpečenie","Sprievodca","Zák. služby",null,"Telefóny","Zavrieť"]
[null,":45",null,"Pokladňa","Zabezpečenie","Sprievodca","Zák. služby",null,"Telefóny","Zavrieť"]
[null,"6:00 AM",null,"Pokladňa","Zabezpečenie","Sprievodca","Zák. služby",null,"Telefóny","Zavrieť"]
[null,":15",null,"Pokladňa","Zabezpečenie","Sprievodca","Zák. služby",null,"Telefóny","Zavrieť"]
[null,":30",null,null,"Zabezpečenie","Sprievodca","Zák. služby",null,"Telefóny","Zavrieť"]
[null,":45",null,null,"Zabezpečenie","Prestávka","Zák. služby",null,"Telefóny","Prestávka"]
[null,"7:00 AM",{"$nulls":3},"Sprievodca",null,null,"Telefóny","Zavrieť"]
[null,":15",{"$nulls":3},"Sprievodca",null,null,"Telefóny","Zavrieť"]
[null,":30",{"$nulls":3},"Sprievodca",{"$nulls":3},"Zavrieť"]
[null,":45",{"$nulls":3},"Sprievodca",{"$nulls":3},"Zavrieť"]
[null,"8:00 AM",{"$nulls":3},"Sprievodca",{"$nulls":3},"Zavrieť"]
[null,":15",{"$nulls":3},"Sprievodca"]
[null,":30",{"$nulls":3},"Sprievodca"]
[null,":45"]
[null,"9:00 AM"]

{"sheet":"Nastavenie","index":1,"n_rows":26,"n_cols":7,"rows_kept":26}
[null,"Nastavenie"]
[]
[]
[null,"ZVÝŠENIE NA HODINU",4]
[]
[]
[]
[]
[]
[null,"Zamestnanci",null,"Funkcia/neprítomnosť","Farba","Platené","Celý deň"]
[null,"R. Kováč",null,"Obed",1,false,false]
[null,"T. Melík",null,"Prestávka",1,false,false]
[null,"B. Grešák",null,"Mimo",1,false,true]
[null,"A. Horváth",null,"PN",1,false,true]
[null,"L. Šimko",null,"Osobné voľno",1,true,true]
[null,"M. Jonáš",null,"Dovolenka",1,true,true]
[null,"J. Rybný",null,"Recepcia",2,true,false]
[null,"M. Nagyová",null,"Pokladňa",3,true,false]
[{"$nulls":3},"Nadriadený",4,true,false]
[{"$nulls":3},"Sprievodca",5,true,false]
[{"$nulls":3},"Zák. služby",6,true,false]
[{"$nulls":3},"Telefóny",7,true,false]
[{"$nulls":3},"Zabezpečenie",8,true,false]
[{"$nulls":3},"Vrátnica",9,true,false]
[{"$nulls":3},"Účtovníctvo",10,true,false]
[{"$nulls":3},"Zavrieť",11,true,false]